bitfinex/quotes_BTCUSD_20250428
["timestamp","ask_amount","ask_price","bid_price","bid_amount"]
[1745829000908,0.06865793,94897.0,94896.0,0.22061966]
[1745829001462,0.07065793,94897.0,94896.0,0.22061966]
[1745829004584,0.07065793,94897.0,94896.0,0.3275098]
[1745829033223,0.07065793,94897.0,94896.0,0.3275098]
[1745829038979,0.98404687,94928.0,94905.0,0.34]
[1745829039315,0.17383547,94920.0,94905.0,0.34]
[1745829039524,0.17383547,94920.0,94905.0,0.56127334]
[1745829040069,0.17383547,94920.0,94905.0,0.22123714]
[1745829040269,0.17683547,94920.0,94906.0,0.00986263]
[1745829040516,0.18283547,94920.0,94906.0,0.00986263]
[1745829041325,0.17983547,94920.0,94906.0,0.00986263]
[1745829041470,0.18283547,94920.0,94907.0,0.00986263]
[1745829041933,0.20389014,94919.0,94907.0,0.00986263]
[1745829042130,0.44689014,94919.0,94907.0,0.00986263]
[1745829042758,0.0943,94917.0,94905.0,0.0077309]
[1745829042965,0.17337796,94915.0,94896.0,0.00549551]
[1745829043175,0.0467,94904.0,94896.0,0.00549551]
[1745829043585,0.0467,94904.0,94897.0,0.00986939]
[1745829044616,0.0467,94904.0,94898.0,0.00986939]
[1745829044617,0.0477,94904.0,94898.0,0.00986939]
[1745829045213,0.0467,94904.0,94898.0,0.00986939]
[1745829045447,0.0477,94904.0,94898.0,0.00986939]
[1745829045747,0.0507,94904.0,94898.0,0.00986939]
[1745829045921,0.0477,94904.0,94899.0,0.00986939]
[1745829046329,0.0507,94904.0,94899.0,0.00986939]
[1745829046671,0.0507,94904.0,94900.0,0.00986939]
[1745829047071,0.0477,94904.0,94900.0,0.00986939]
[1745829047323,0.0497,94904.0,94901.0,0.00986939]
[1745829047708,0.0517,94904.0,94901.0,0.00986939]
[1745829048118,0.0497,94904.0,94901.0,0.00986939]
[1745829048376,0.0497,94904.0,94896.0,0.01351971]
[1745829048571,0.0517,94904.0,94896.0,0.01351971]
[1745829048854,0.0487,94904.0,94896.0,0.01351971]
[1745829049049,0.0517,94904.0,94896.0,0.01351971]
[1745829049492,0.0487,94904.0,94896.0,0.01351971]
[1745829049694,0.0517,94904.0,94897.0,0.0098566]
[1745829050538,0.0517,94904.0,94898.0,0.0098566]
[1745829050994,0.0497,94904.0,94898.0,0.0098566]
[1745829051207,0.0517,94904.0,94899.0,0.0098566]
[1745829051825,0.0467,94904.0,94899.0,0.0098566]
[1745829051959,0.0517,94904.0,94899.0,0.0098566]
[1745829052321,0.0487,94904.0,94899.0,0.0098566]
[1745829052611,0.0467,94904.0,94900.0,0.0098566]
[1745829052833,0.0517,94904.0,94900.0,0.0098566]
[1745829053511,0.0487,94904.0,94900.0,0.0098566]
[1745829053711,0.0487,94904.0,94896.0,0.01351971]
[1745829054211,0.0517,94904.0,94896.0,0.01351971]
[1745829054775,0.0497,94904.0,94896.0,0.01351971]
[1745829054979,0.0517,94904.0,94897.0,0.00985247]
[1745829055498,0.0487,94904.0,94897.0,0.00985247]
[1745829055924,0.0497,94904.0,94897.0,0.00985247]
[1745829056118,0.0497,94904.0,94898.0,0.00985247]
[1745829056310,0.0467,94904.0,94898.0,0.00985247]
[1745829056510,0.0497,94904.0,94898.0,0.00985247]
[1745829057098,0.13395794,94903.0,94899.0,0.00985247]
[1745829057318,0.0451,94902.0,94899.0,0.00985247]
[1745829057487,0.0451,94900.0,94899.0,0.00985247]
[1745829057722,0.22718223,94900.0,94899.0,0.00985247]
[1745829057923,0.13648223,94900.0,94896.0,0.00549551]
[1745829058177,0.0932,94898.0,94896.0,0.00549551]
[1745829058384,0.57198223,94897.0,94896.0,0.00549551]
[1745829059776,0.57398223,94897.0,94896.0,0.00549551]
[1745829060699,0.57498223,94897.0,94896.0,0.00549551]
[1745829065894,0.20539014,94897.0,94896.0,0.00549551]
[1745829067229,0.22592915,94897.0,94896.0,0.00549551]
[1745829068096,0.20539014,94897.0,94896.0,0.00549551]
[1745829074109,0.61599014,94897.0,94896.0,0.00549551]
[1745829074517,0.97053099,94897.0,94896.0,0.00549551]
[1745829074897,0.35454085,94888.0,94884.0,0.01402719]
[1745829075019,0.12143099,94887.0,94884.0,0.01402719]
[1745829075223,0.06184085,94885.0,94884.0,0.01402719]
[1745829075469,0.06184085,94885.0,94877.0,0.00549886]
[1745829075470,0.60713099,94885.0,94877.0,0.00549886]
[1745829075805,0.0473,94875.0,94860.0,0.0008486]
[1745829075977,0.34,94869.0,94864.0,0.00549351]
[1745829076151,0.10689014,94868.0,94864.0,0.00549351]
[1745829077589,0.10689014,94868.0,94864.0,0.00649351]
[1745829078374,0.10689014,94868.0,94864.0,0.00640054]
[1745829078573,0.10689014,94868.0,94864.0,0.00740054]
[1745829079979,0.40510449,94867.0,94864.0,0.00740054]
[1745829080338,0.045,94865.0,94864.0,0.00740054]
[1745829080514,0.55699463,94865.0,94864.0,0.00740054]
[1745829080855,0.55699463,94865.0,94864.0,0.00640054]
[1745829081309,0.55699463,94865.0,94864.0,0.00540054]
[1745829081650,0.55699463,94865.0,94864.0,0.00640054]
[1745829082108,0.55699463,94865.0,94864.0,0.00740054]
[1745829082410,0.55699463,94865.0,94864.0,0.00840054]
[1745829082619,0.55699463,94865.0,94864.0,0.00740054]
[1745829082870,0.55699463,94865.0,94864.0,0.00940054]
[1745829084271,0.51199463,94865.0,94864.0,0.00940054]
[1745829093253,0.40510449,94865.0,94864.0,0.26902867]
[1745829093448,0.40510449,94865.0,94864.0,0.01040054]
[1745829093909,0.40510449,94865.0,94864.0,0.02023948]
[1745829094061,0.40510449,94865.0,94864.0,0.23106761]
[1745829095689,0.40510449,94865.0,94864.0,0.02023948]
[1745829096483,0.40510449,94865.0,94864.0,0.23106761]
[1745829098612,0.40510449,94865.0,94864.0,0.02023948]
[1745829099291,0.40510449,94865.0,94864.0,0.01040054]
[1745829103845,0.53887625,94865.0,94864.0,0.01040054]
[1745829104019,0.58787625,94865.0,94864.0,0.01040054]
[1745829105521,0.56099463,94865.0,94864.0,0.01040054]
[1745829106380,0.56099463,94865.0,94864.0,0.00840054]
[1745829107387,0.56099463,94865.0,94864.0,0.00640054]
[1745829107587,0.56199463,94865.0,94864.0,0.00640054]
[1745829108881,0.59158807,94865.0,94864.0,0.00640054]
[1745829109302,0.59158807,94865.0,94864.0,0.001]
[1745829109497,0.39870395,94863.0,94860.0,0.0008486]
[1745829109695,0.10689014,94862.0,94860.0,0.00634638]
[1745829110847,0.39870395,94861.0,94860.0,0.00634638]
[1745829111055,0.50559409,94861.0,94860.0,0.00634638]
[1745829113015,0.50659409,94861.0,94860.0,0.00634638]
[1745829113375,0.50759409,94861.0,94860.0,0.00634638]
[1745829114855,0.40070395,94861.0,94860.0,0.05604638]
[1745829115273,0.40070395,94861.0,94860.0,0.2668834]
[1745829115784,0.40070395,94861.0,94860.0,0.06591281]
[1745829116189,0.40070395,94861.0,94860.0,0.27674983]
[1745829117542,0.40070395,94861.0,94860.0,0.06591281]
[1745829117886,0.50759409,94861.0,94860.0,0.01621281]
[1745829118967,0.50759409,94861.0,94860.0,0.00634638]
[1745829130354,0.50759409,94861.0,94854.0,0.00552146]
[1745829130536,0.50759409,94861.0,94860.0,0.00987626]
[1745829131071,0.50659409,94861.0,94860.0,0.00987626]
[1745829131509,0.50859409,94861.0,94860.0,0.00987626]
[1745829131704,0.50759409,94861.0,94860.0,0.00987626]
[1745829131907,0.50659409,94861.0,94860.0,0.00987626]
[1745829132119,0.50759409,94861.0,94860.0,0.00987626]
[1745829132317,0.50859409,94861.0,94860.0,0.00987626]
[1745829132994,0.50859409,94861.0,94851.0,0.21285649]
[1745829133687,0.50859409,94861.0,94852.0,0.21085463]
[1745829134032,0.50759409,94861.0,94852.0,0.21085463]
[1745829134577,0.50759409,94861.0,94851.0,0.21285649]
[1745829135267,0.50859409,94861.0,94851.0,0.21285649]
[1745829135476,0.50659409,94861.0,94851.0,0.21285649]
[1745829135887,0.50759409,94861.0,94851.0,0.21285649]
[1745829136735,0.50759409,94861.0,94851.0,0.220865]
[1745829136888,0.50859409,94861.0,94851.0,0.220865]
[1745829137091,0.50859409,94861.0,94852.0,0.21085287]
[1745829137774,0.50759409,94861.0,94852.0,0.21085287]
[1745829138577,0.50859409,94861.0,94852.0,0.21085287]
[1745829138803,0.50859409,94861.0,94853.0,0.21085209]
[1745829139214,0.40170395,94861.0,94860.0,0.21083702]
[1745829139651,0.40170395,94861.0,94857.0,0.21084167]
[1745829140046,0.40070395,94861.0,94859.0,0.21083901]
[1745829140272,0.40170395,94861.0,94860.0,0.21083702]
[1745829141094,0.40070395,94861.0,94858.0,0.21083934]
[1745829141303,0.40170395,94861.0,94858.0,0.21083934]
[1745829141589,0.40070395,94861.0,94858.0,0.21083934]
[1745829141939,0.40170395,94861.0,94856.0,0.21084469]
[1745829142136,0.40170395,94861.0,94857.0,0.21084308]
[1745829142339,0.40170395,94861.0,94858.0,0.21084046]
[1745829142584,0.40170395,94861.0,94859.0,0.21083914]
[1745829142797,0.40070395,94861.0,94859.0,0.21083914]
[1745829142998,0.39970395,94861.0,94859.0,0.21083914]
[1745829143191,0.40070395,94861.0,94859.0,0.21083914]
[1745829143636,0.39970395,94861.0,94859.0,0.21083914]
[1745829143844,0.40070395,94861.0,94859.0,0.21083914]
[1745829144186,0.40170395,94861.0,94857.0,0.21084332]
[1745829144390,0.40170395,94861.0,94857.0,0.21084369]
[1745829144651,0.40070395,94861.0,94857.0,0.2108429]
[1745829144826,0.40070395,94861.0,94856.0,0.2108455]
[1745829145027,0.40170395,94861.0,94859.0,0.21083922]
[1745829145452,0.40070395,94861.0,94859.0,0.21083922]
[1745829145743,0.40170395,94861.0,94858.0,0.22072012]
[1745829146386,0.40170395,94861.0,94859.0,0.0098789]
[1745829146682,0.40070395,94861.0,94859.0,0.0098789]
[1745829146975,0.40070395,94861.0,94859.0,0.2207181]
[1745829147274,0.40070395,94861.0,94860.0,0.0098789]
[1745829147572,0.39970395,94861.0,94860.0,0.0098789]
[1745829147781,0.40170395,94861.0,94860.0,0.0098789]
[1745829147993,0.40070395,94861.0,94860.0,0.0098789]
[1745829148139,0.39970395,94861.0,94860.0,0.0098789]
[1745829148351,0.40070395,94861.0,94860.0,0.0098789]
[1745829148561,0.40170395,94861.0,94860.0,0.0098789]
[1745829149615,0.40070395,94861.0,94860.0,0.0098789]
[1745829149952,0.40170395,94861.0,94860.0,0.0098789]
[1745829151231,0.40170395,94861.0,94855.0,0.00549738]
[1745829151383,0.40170395,94861.0,94857.0,0.2108424]
[1745829151801,0.40170395,94861.0,94858.0,0.21084103]
[1745829152005,0.40070395,94861.0,94859.0,0.2108384]
[1745829152167,0.40070395,94861.0,94860.0,0.21083702]
[1745829152363,0.40170395,94861.0,94860.0,0.21083702]
[1745829152762,0.40070395,94861.0,94860.0,0.21083702]
[1745829152979,0.40170395,94861.0,94860.0,0.21083702]
[1745829153242,0.40070395,94861.0,94860.0,0.21083702]
[1745829153584,0.40170395,94861.0,94860.0,0.21083702]
[1745829153986,0.40070395,94861.0,94859.0,0.21083907]
[1745829154188,0.40070395,94861.0,94860.0,0.21083702]
[1745829154388,0.40170395,94861.0,94860.0,0.21083702]
[1745829155047,0.40070395,94861.0,94860.0,0.21083702]
[1745829155497,0.40170395,94861.0,94860.0,0.21083702]
[1745829155817,0.40070395,94861.0,94860.0,0.21083702]
[1745829156013,0.40170395,94861.0,94860.0,0.21083702]
[1745829156314,0.40070395,94861.0,94860.0,0.21083702]
[1745829156650,0.40170395,94861.0,94860.0,0.21083702]
[1745829157056,0.40170395,94861.0,94859.0,0.21083907]
[1745829157308,0.40170395,94861.0,94859.0,0.2108392]
[1745829157546,0.40170395,94861.0,94860.0,0.21083702]
[1745829157821,0.40070395,94861.0,94858.0,0.21084098]
[1745829158250,0.40170395,94861.0,94858.0,0.21084098]
[1745829158757,0.39970395,94861.0,94859.0,0.21083888]
[1745829158912,0.40070395,94861.0,94859.0,0.21083888]
[1745829159128,0.40170395,94861.0,94859.0,0.21083888]
[1745829159341,0.40070395,94861.0,94859.0,0.21083888]
[1745829159567,0.40070395,94861.0,94860.0,0.21083702]
[1745829160309,0.40170395,94861.0,94860.0,0.21083702]
[1745829160513,0.40070395,94861.0,94860.0,0.21083702]
[1745829160919,0.39970395,94861.0,94860.0,0.21083702]
[1745829161542,0.40070395,94861.0,94860.0,0.21083702]
[1745829162278,0.40170395,94861.0,94860.0,0.21083702]
[1745829162487,0.40170395,94861.0,94859.0,0.21083888]
[1745829162639,0.40170395,94861.0,94858.0,0.21084112]
[1745829163054,0.40170395,94861.0,94859.0,0.21083736]
[1745829163458,0.40070395,94861.0,94859.0,0.21083736]
[1745829163650,0.40070395,94861.0,94860.0,0.00987236]
[1745829163936,0.40170395,94861.0,94860.0,0.00987236]
[1745829164958,0.40070395,94861.0,94860.0,0.00987236]
[1745829165403,0.40170395,94861.0,94860.0,0.00987236]
[1745829165559,0.40070395,94861.0,94860.0,0.00987236]
[1745829165934,0.40170395,94861.0,94860.0,0.00987236]
[1745829168695,0.40170395,94861.0,94860.0,0.00987236]
[1745829169927,0.40170395,94861.0,94860.0,0.21083702]
[1745829170523,0.40170395,94861.0,94860.0,0.30673702]
[1745829171347,0.40070395,94861.0,94860.0,0.30673702]
[1745829172113,0.40070395,94861.0,94860.0,0.31660939]
[1745829172719,0.40070395,94861.0,94860.0,0.31860939]
[1745829173139,0.40070395,94861.0,94860.0,0.31760939]
[1745829173351,0.40070395,94861.0,94860.0,0.31860939]
[1745829173916,0.002,94861.0,94860.0,0.31860939]
[1745829174336,0.002,94861.0,94860.0,0.26920939]
[1745829180518,0.002,94861.0,94860.0,0.288942]
[1745829181165,0.002,94861.0,94860.0,0.07810498]
[1745829181530,0.002,94861.0,94860.0,0.288942]
[1745829189759,0.002,94861.0,94860.0,0.27906963]
[1745829191371,0.00045723,94875.0,94874.0,0.21080591]
[1745829191575,0.00145723,94875.0,94874.0,0.21080591]
[1745829191732,0.00145723,94875.0,94874.0,0.23053852]
[1745829192153,0.00145723,94875.0,94874.0,0.24040224]
[1745829192702,0.00545723,94875.0,94874.0,0.24040224]
[1745829192904,0.00545723,94875.0,94874.0,0.02959633]
[1745829193627,0.00345723,94875.0,94874.0,0.02959633]
[1745829193821,0.00545723,94875.0,94874.0,0.02959633]
[1745829194375,0.00345723,94875.0,94874.0,0.02959633]
[1745829194576,0.00545723,94875.0,94874.0,0.02959633]
[1745829200220,0.00545723,94875.0,94874.0,0.01973261]
[1745829201360,0.00545723,94875.0,94874.0,0.23053852]
[1745829202092,0.00345723,94875.0,94874.0,0.24040134]
[1745829202517,0.00145723,94875.0,94874.0,0.24040134]
[1745829203537,0.00145723,94875.0,94874.0,0.23053852]
[1745829205491,0.00145723,94875.0,94874.0,0.24040034]
[1745829207614,0.00145723,94875.0,94874.0,0.23053852]
[1745829220019,0.00145723,94875.0,94874.0,0.21080591]
[1745829221239,0.00145723,94875.0,94874.0,0.2305293]
[1745829221803,0.00245723,94875.0,94874.0,0.2305293]
[1745829224080,0.00245723,94875.0,94874.0,0.21080591]
[1745829227096,0.00245723,94875.0,94874.0,0.23053358]
[1745829229654,0.00245723,94875.0,94874.0,0.21080591]
[1745829230447,0.00245723,94875.0,94874.0,0.23053667]
[1745829231632,0.00245723,94875.0,94874.0,0.21080591]
[1745829235591,0.00222359,94875.0,94874.0,0.23054264]
[1745829236605,0.00222359,94875.0,94874.0,0.21080591]
[1745829241463,0.00222359,94875.0,94874.0,0.23054506]
[1745829244516,0.00222359,94875.0,94874.0,0.23054506]
[1745829245296,0.00222359,94875.0,94874.0,0.24041664]
[1745829245613,0.00222359,94875.0,94874.0,0.02961073]
[1745829246388,0.00222359,94875.0,94874.0,0.24041664]
[1745829246604,0.00222359,94875.0,94874.0,0.02961073]
[1745829247228,0.00222359,94875.0,94874.0,0.24041664]
[1745829247524,0.00222359,94875.0,94874.0,0.22067749]
[1745829247867,0.00222359,94875.0,94874.0,0.00987158]
[1745829248667,0.0779731,94875.0,94874.0,0.00987158]
[1745829248835,0.15621373,94875.0,94874.0,0.00987158]
[1745829249043,0.0461,94874.0,94850.0,0.0008486]
[1745829249290,0.07574951,94873.0,94850.0,0.0008486]
[1745829249461,0.07574951,94872.0,94854.0,0.0054988]
[1745829249673,0.02964951,94871.0,94854.0,0.0054988]
[1745829249908,0.01078599,94870.0,94854.0,0.0054988]
[1745829250027,0.02964951,94870.0,94854.0,0.0054988]
[1745829250225,0.02964951,94871.0,94854.0,0.0054988]
[1745829251340,0.03064951,94871.0,94854.0,0.0054988]
[1745829251493,0.0461,94872.0,94854.0,0.0054988]
[1745829251494,0.13653965,94870.0,94854.0,0.0054988]
[1745829251673,0.02964951,94869.0,94854.0,0.0054988]
[1745829251877,0.13653965,94869.0,94854.0,0.0054988]
[1745829252062,0.10689014,94869.0,94854.0,0.0054988]
[1745829253064,0.39870395,94868.0,94855.0,0.00985455]
[1745829253439,0.39870395,94868.0,94856.0,0.01970986]
[1745829253795,0.39870395,94868.0,94855.0,0.00985455]
[1745829254218,0.40070395,94868.0,94855.0,0.00985455]
[1745829254415,0.39870395,94868.0,94855.0,0.00985455]
[1745829254617,0.40070395,94868.0,94856.0,0.00985455]
[1745829255034,0.39870395,94868.0,94856.0,0.00985455]
[1745829255466,0.40070395,94868.0,94856.0,0.00985455]
[1745829255676,0.0915,94867.0,94857.0,0.00985455]
[1745829256693,0.0915,94867.0,94858.0,0.00985455]
[1745829257641,0.0935,94867.0,94858.0,0.00985455]
[1745829257928,0.0935,94867.0,94855.0,0.00985455]
[1745829258076,0.0955,94867.0,94855.0,0.00985455]
[1745829258703,0.0935,94867.0,94855.0,0.00985455]
[1745829259105,0.39870395,94866.0,94856.0,0.00985455]
[1745829259820,0.39870395,94866.0,94855.0,0.00985455]
[1745829260229,0.39970395,94866.0,94855.0,0.00985455]
[1745829260394,0.45269741,94866.0,94855.0,0.00985455]
[1745829260624,0.45269741,94866.0,94854.0,0.0054988]
[1745829260625,0.0493,94865.0,94856.0,0.00985455]
[1745829261516,0.0493,94865.0,94854.0,0.0054988]
[1745829262040,0.39870395,94864.0,94854.0,0.0054988]
[1745829262348,0.0453,94862.0,94854.0,0.0054988]
[1745829262489,0.15219014,94861.0,94851.0,0.01000851]
[1745829262844,0.0453,94860.0,94851.0,0.01000851]
[1745829263045,0.10689014,94859.0,94851.0,0.01000851]
[1745829263220,0.0453,94858.0,94851.0,0.01000851]
[1745829263428,0.10689014,94857.0,94851.0,0.01000851]
[1745829266734,0.10689014,94857.0,94851.0,0.01100851]
[1745829267167,0.0488,94855.0,94851.0,0.01100851]
[1745829267342,0.10689014,94854.0,94851.0,0.01100851]
[1745829267577,0.0454,94853.0,94851.0,0.01100851]
[1745829267728,0.10689014,94852.0,94851.0,0.01100851]
[1745829269160,0.89059409,94852.0,94851.0,0.01000851]
[1745829269458,0.9843935,94852.0,94851.0,0.01000851]
[1745829270224,0.34,94851.0,94816.0,0.21178241]
[1745829270421,0.34,94849.0,94827.0,0.01054551]
[1745829270655,0.50559409,94850.0,94827.0,0.01054551]
[1745829270656,0.34,94847.0,94829.0,0.01054529]
[1745829270867,0.10689014,94846.0,94830.0,0.38428293]
[1745829271006,0.10689014,94846.0,94830.0,0.39482811]
[1745829271205,0.10689014,94846.0,94830.0,0.17337958]
[1745829272056,0.39870395,94850.0,94836.0,0.22117958]
[1745829272255,0.39870395,94850.0,94830.0,0.1841584]
[1745829272458,0.39870395,94850.0,94832.0,0.01054496]
[1745829272649,0.008,94849.0,94832.0,0.01054496]
[1745829272845,0.008,94849.0,94831.0,0.24111706]
[1745829273248,0.008,94849.0,94836.0,0.001]
[1745829273450,0.40370395,94850.0,94830.0,0.00123364]
[1745829273667,0.40370395,94850.0,94831.0,0.00983583]
[1745829273849,0.009,94849.0,94832.0,0.001]
[1745829274065,0.41747695,94850.0,94831.0,0.00983583]
[1745829274265,0.006,94849.0,94831.0,0.01083583]
[1745829274464,0.006,94849.0,94836.0,0.001]
[1745829275558,0.41747695,94850.0,94830.0,0.01077882]
[1745829275890,0.013,94849.0,94832.0,0.002]
[1745829276084,0.013,94849.0,94833.0,0.00984014]
[1745829276293,0.008,94849.0,94834.0,0.01968029]
[1745829276457,0.008,94849.0,94836.0,0.002]
[1745829276666,0.41747695,94850.0,94836.0,0.001]
[1745829277214,0.0547377,94849.0,94832.0,0.001]
[1745829277522,0.0597377,94849.0,94833.0,0.001]
[1745829277662,0.0597377,94849.0,94836.0,0.001]
[1745829277861,0.013,94849.0,94836.0,0.001]
[1745829278103,0.013,94849.0,94837.0,0.00984443]
[1745829278506,0.008,94849.0,94837.0,0.00984443]
[1745829278907,0.41747695,94850.0,94837.0,0.00984443]
[1745829279362,0.39870395,94850.0,94837.0,0.00984443]
[1745829279766,0.39870395,94850.0,94837.0,0.01084443]
[1745829280131,0.39870395,94850.0,94838.0,0.00984443]
[1745829281115,0.39870395,94850.0,94837.0,0.002]
[1745829281116,0.39870395,94850.0,94839.0,0.00984443]
[1745829281555,0.39970395,94850.0,94839.0,0.00984443]
[1745829282260,0.39970395,94850.0,94838.0,0.001]
[1745829282261,0.39970395,94850.0,94840.0,0.00984443]
[1745829282620,0.39970395,94850.0,94840.0,0.18322401]
[1745829282956,0.39970395,94850.0,94841.0,0.01969514]
[1745829283157,0.39970395,94850.0,94842.0,0.00984443]
[1745829283557,0.39970395,94850.0,94843.0,0.01969514]
[1745829284101,0.39970395,94850.0,94844.0,0.02953957]
[1745829284559,0.39970395,94850.0,94845.0,0.01969514]
[1745829285171,0.39970395,94850.0,94846.0,0.02953957]
[1745829285597,0.39970395,94850.0,94846.0,0.00984443]
[1745829286022,0.39970395,94850.0,94847.0,0.00984443]
[1745829286537,0.39970395,94850.0,94847.0,0.00853514]
[1745829287085,0.39970395,94850.0,94846.0,0.001]
[1745829287285,0.39970395,94850.0,94847.0,0.01970711]
[1745829287920,0.39970395,94850.0,94846.0,0.001]
[1745829288273,0.39970395,94850.0,94847.0,0.001]
[1745829288658,0.39970395,94850.0,94848.0,0.01971381]
[1745829288998,0.39970395,94850.0,94847.0,0.001]
[1745829289200,0.0459,94849.0,94847.0,0.001]
[1745829289453,0.0459,94849.0,94846.0,0.001]
[1745829289763,0.0459,94849.0,94848.0,0.001]
[1745829289938,0.0459,94849.0,94848.0,0.002]
[1745829290299,0.0459,94849.0,94830.0,0.00023364]
[1745829290658,0.08531492,94849.0,94846.0,0.001]
[1745829290806,0.0459,94849.0,94846.0,0.001]
[1745829292057,0.0459,94849.0,94848.0,0.001]
[1745829292437,0.0459,94849.0,94846.0,0.001]
[1745829292711,0.0459,94849.0,94846.0,0.002]
[1745829292858,0.0459,94849.0,94846.0,0.001]
[1745829293058,0.0459,94849.0,94848.0,0.001]
[1745829293562,0.0459,94849.0,94846.0,0.001]
[1745829294220,0.39870395,94848.0,94846.0,0.001]
[1745829294643,0.39870395,94848.0,94846.0,0.002]
[1745829294849,0.39870395,94848.0,94846.0,0.001]
[1745829295621,0.10689014,94847.0,94846.0,0.001]
[1745829295826,0.10689014,94847.0,94846.0,0.003]
[1745829296124,0.10689014,94847.0,94846.0,0.002]
[1745829296324,0.10689014,94847.0,94846.0,0.001]
[1745829296533,0.10689014,94847.0,94830.0,0.00023364]
[1745829296726,0.10689014,94847.0,94846.0,0.002]
[1745829297885,0.10689014,94847.0,94846.0,0.001]
[1745829298322,0.11189014,94847.0,94846.0,0.001]
[1745829298671,0.10689014,94847.0,94846.0,0.001]
[1745829299068,0.10689014,94847.0,94846.0,0.003]
[1745829299389,0.13653022,94847.0,94846.0,0.003]
[1745829300022,0.53523417,94847.0,94846.0,0.003]
[1745829300429,0.59833759,94847.0,94846.0,0.003]
[1745829300630,0.60899315,94847.0,94846.0,0.003]
[1745829301914,0.59833759,94847.0,94846.0,0.003]
[1745829302088,0.59833759,94847.0,94830.0,0.00023364]
[1745829302454,0.02964008,94846.0,94830.0,0.00023364]
[1745829302641,0.13653022,94845.0,94831.0,0.01974]
[1745829302804,0.02964008,94844.0,94831.0,0.01974]
[1745829302991,0.13653022,94844.0,94831.0,0.01974]
[1745829303194,0.02964008,94843.0,94832.0,0.01974]
[1745829303859,0.02964008,94843.0,94833.0,0.00986775]
[1745829304198,0.15599014,94842.0,94833.0,0.00986775]
[1745829304430,0.02964008,94841.0,94833.0,0.00986775]
[1745829304757,0.25842142,94843.0,94833.0,0.00986775]
[1745829304758,0.0491,94839.0,94833.0,0.00986775]
[1745829304882,0.50559409,94838.0,94830.0,0.00023364]
[1745829305083,0.01454085,94836.0,94830.0,0.00023364]
[1745829305297,0.0463,94834.0,94830.0,0.00023364]
[1745829305491,0.13653022,94833.0,94830.0,0.00023364]
[1745829305760,0.02964008,94832.0,94830.0,0.00023364]
[1745829305916,0.10689014,94831.0,94830.0,0.00023364]
[1745829306118,0.53523417,94831.0,94830.0,0.00023364]
[1745829306324,0.60456671,94831.0,94830.0,0.00023364]
[1745829306550,0.60456671,94831.0,94830.0,0.00123364]
[1745829306764,1.05410756,94831.0,94830.0,0.00123364]
[1745829307172,0.40144085,94830.0,94819.0,0.000849]
[1745829307334,0.35454085,94828.0,94822.0,0.00089495]
[1745829307535,0.34,94826.0,94822.0,0.00089495]
[1745829307872,0.34,94824.0,94822.0,0.00089495]
[1745829308072,0.13653022,94823.0,94822.0,0.00089495]
[1745829309369,0.13653022,94823.0,94822.0,0.00289495]
[1745829309573,0.24901634,94823.0,94822.0,0.00289495]
[1745829309777,0.18453022,94823.0,94822.0,0.00289495]
[1745829310754,0.59777502,94823.0,94822.0,0.00289495]
[1745829311289,0.56913494,94823.0,94822.0,0.00289495]
[1745829315433,0.55459409,94823.0,94822.0,0.00289495]
[1745829315630,0.39970395,94823.0,94822.0,0.00289495]
[1745829316609,0.43967435,94823.0,94822.0,0.00289495]
[1745829316752,0.39970395,94823.0,94822.0,0.00289495]
[1745829328622,0.39970395,94823.0,94822.0,0.00089495]
[1745829328992,0.40270395,94823.0,94822.0,0.00089495]
[1745829329831,0.3894619,94823.0,94822.0,0.00089495]
[1745829331093,0.3894619,94823.0,94822.0,0.04869495]
[1745829331264,0.3894619,94823.0,94822.0,0.07677141]
[1745829331463,0.006,94823.0,94822.0,0.36540564]
[1745829331666,0.006,94823.0,94822.0,0.36329655]
[1745829331918,0.003,94823.0,94822.0,0.57497836]
[1745829332104,0.003,94823.0,94822.0,0.57446436]
[1745829332105,0.004,94823.0,94822.0,0.57446436]
[1745829332406,0.003,94823.0,94822.0,0.57446436]
[1745829332631,0.3834619,94847.0,94845.0,0.0478]
[1745829332961,0.3834619,94847.0,94846.0,0.01685806]
[1745829334095,0.3834619,94847.0,94845.0,0.0478]
[1745829334257,0.3834619,94847.0,94846.0,0.01680824]
[1745829334459,0.3854619,94847.0,94846.0,0.01680824]
[1745829334726,0.3854619,94847.0,94830.0,0.21301137]
[1745829334875,0.3874619,94847.0,94830.0,0.21301137]
[1745829335080,0.3854619,94847.0,94831.0,0.01670813]
[1745829335462,0.3874619,94847.0,94832.0,0.00210875]
[1745829335686,0.3854619,94847.0,94832.0,0.00210875]
[1745829335913,0.38527077,94847.0,94833.0,0.01967845]
[1745829336141,0.38727077,94847.0,94834.0,0.00983641]
[1745829336342,0.38527077,94847.0,94834.0,0.00983641]
[1745829336473,0.38527077,94847.0,94835.0,0.01669924]
[1745829336683,0.38627077,94847.0,94835.0,0.01669924]
[1745829337124,0.38627077,94847.0,94836.0,0.00983641]
[1745829337330,0.38527077,94847.0,94836.0,0.00983641]
[1745829337532,0.38627077,94847.0,94837.0,0.0166948]
[1745829337780,0.38427077,94847.0,94837.0,0.0166948]
[1745829337904,0.38527077,94847.0,94837.0,0.0166948]
[1745829338106,0.38327077,94847.0,94837.0,0.0166948]
[1745829338369,0.38427077,94847.0,94837.0,0.0166948]
[1745829338586,0.38627077,94847.0,94832.0,0.00210875]
[1745829338762,0.38427077,94847.0,94832.0,0.00210875]
[1745829338908,0.10689014,94846.0,94833.0,0.01670369]
[1745829339117,0.10689014,94846.0,94834.0,0.00983094]
[1745829340145,0.10689014,94846.0,94835.0,0.01671244]
[1745829340357,0.38527077,94847.0,94835.0,0.01671244]
[1745829340555,0.001,94846.0,94831.0,0.00983094]
[1745829340756,0.001,94846.0,94836.0,0.01671022]
[1745829340956,0.001,94846.0,94830.0,0.26423949]
[1745829341184,0.002,94846.0,94837.0,0.016708]
[1745829341385,0.003,94846.0,94830.0,0.26423949]
[1745829341695,0.001,94846.0,94831.0,0.01672133]
[1745829341924,0.003,94846.0,94832.0,0.00982877]
[1745829342105,0.001,94846.0,94832.0,0.00982877]
[1745829342254,0.001,94846.0,94833.0,0.01671689]
[1745829342453,0.002,94846.0,94833.0,0.01671689]
[1745829342658,0.38327077,94847.0,94833.0,0.01671689]
[1745829342885,0.001,94846.0,94834.0,0.00982877]
[1745829343261,0.38327077,94847.0,94835.0,0.01671244]
[1745829343462,0.002,94846.0,94835.0,0.01671244]
[1745829343668,0.003,94846.0,94835.0,0.01671244]
[1745829343868,0.003,94846.0,94836.0,0.00982877]
[1745829344127,0.002,94846.0,94836.0,0.00982877]
[1745829344299,0.002,94846.0,94837.0,0.016708]
[1745829344651,0.38427077,94847.0,94830.0,0.26423949]
[1745829344895,0.002,94846.0,94831.0,0.03638166]